bitfinex/quotes_ETHUSD_20250425
["timestamp","ask_amount","ask_price","bid_price","bid_amount"]
[1745607459959,5.56575944,1796.7,1796.4,1.40440283]
[1745607460786,5.56610815,1796.6,1796.4,1.40440283]
[1745607460987,5.56610815,1796.6,1796.3,5.49660283]
[1745607461151,5.56664207,1796.5,1796.3,5.49660283]
[1745607461359,5.56664207,1796.5,1796.3,4.843]
[1745607461360,6.08728383,1796.4,1796.3,4.843]
[1745607461679,6.39964711,1796.4,1796.3,4.843]
[1745607462052,6.39964711,1796.4,1796.1,0.70360283]
[1745607462490,11.96657331,1796.4,1796.1,0.70360283]
[1745607462792,8.04884116,1796.4,1796.1,0.70360283]
[1745607462956,7.52824626,1796.4,1796.1,0.70360283]
[1745607463157,5.56700574,1796.3,1796.1,0.70360283]
[1745607463684,7.52824626,1796.4,1796.1,0.70360283]
[1745607463882,6.76338939,1796.4,1796.1,0.70360283]
[1745607464093,5.56649685,1796.5,1796.1,0.70360283]
[1745607464271,0.52023566,1796.4,1796.1,0.70360283]
[1745607464469,0.52023566,1796.4,1796.2,0.8309]
[1745607466800,11.13306378,1796.5,1796.2,0.8309]
[1745607466987,5.56686864,1796.4,1796.1,1.53690283]
[1745607468571,5.56686864,1796.4,1796.1,0.05]
[1745607468901,5.56686864,1796.4,1796.1,0.70360283]
[1745607471405,11.13382583,1796.4,1796.1,0.70360283]
[1745607471629,5.56686864,1796.4,1796.1,0.70360283]
[1745607472491,7.36735716,1796.5,1796.2,0.8103]
[1745607473021,5.56670139,1796.4,1796.2,0.8103]
[1745607473222,12.93401233,1796.5,1796.2,0.8103]
[1745607473423,6.86023575,1796.4,1796.2,0.8103]
[1745607473618,6.86023575,1796.4,1796.1,1.46340283]
[1745607473785,7.36735716,1796.5,1796.1,1.46340283]
[1745607475923,1.80079638,1796.5,1796.3,0.65360283]
[1745607476224,12.45543612,1796.6,1796.3,0.65360283]
[1745607476521,6.11,1796.6,1796.3,0.65360283]
[1745607480854,6.11,1796.6,1796.1,0.8098]
[1745607480855,12.42714118,1796.8,1796.5,0.65360283]
[1745607481265,0.51969736,1796.7,1796.5,0.65360283]
[1745607481462,0.51969736,1796.7,1796.6,0.65360283]
[1745607482951,0.51969736,1796.7,1796.5,0.65360283]
[1745607483152,6.17439051,1796.7,1796.5,0.65360283]
[1745607483353,0.60853592,1796.7,1796.5,0.65360283]
[1745607483548,11.13134302,1796.8,1796.5,0.65360283]
[1745607484051,11.1313427,1796.8,1796.5,0.65360283]
[1745607484251,0.51999984,1796.7,1796.5,0.65360283]
[1745607484678,0.51999984,1796.6,1796.5,0.65360283]
[1745607485086,11.13135549,1796.8,1796.5,0.65360283]
[1745607485283,12.32500672,1796.8,1796.5,0.65360283]
[1745607485475,0.31206594,1796.7,1796.5,0.65360283]
[1745607486376,5.56566182,1796.8,1796.5,0.65360283]
[1745607487291,0.52018372,1796.7,1796.5,0.65360283]
[1745607487885,0.31213235,1796.9,1796.6,0.7659]
[1745607488089,0.31213235,1796.9,1796.7,0.65360283]
[1745607488588,6.31583829,1797.1,1796.7,0.65360283]
[1745607488967,0.52008507,1797.0,1796.7,0.65360283]
[1745607489500,6.31583829,1797.1,1796.7,0.65360283]
[1745607489679,0.31202124,1797.0,1796.7,0.65360283]
[1745607490372,0.52003534,1796.9,1796.7,0.65360283]
[1745607490579,6.31583829,1797.1,1796.7,0.65360283]
[1745607490979,0.51995945,1797.0,1796.7,0.65360283]
[1745607491205,6.08481265,1797.0,1796.7,0.65360283]
[1745607491376,5.5651946,1796.9,1796.6,5.6079]
[1745607491576,6.17371001,1796.9,1796.6,4.842]
[1745607491965,5.56494797,1797.0,1796.6,4.842]
[1745607492166,0.3119239,1796.9,1796.6,4.842]
[1745607492357,0.83179707,1796.9,1796.6,4.842]
[1745607492760,0.83179707,1796.9,1796.7,0.65360283]
[1745607492960,5.56494797,1797.0,1796.7,0.65360283]
[1745607493160,6.79468122,1797.0,1796.7,0.65360283]
[1745607493775,5.56499324,1797.0,1796.7,0.65360283]
[1745607494009,0.51978841,1796.9,1796.7,0.65360283]
[1745607494185,5.56499324,1797.0,1796.6,4.842]
[1745607494585,5.56527482,1796.9,1796.6,4.842]
[1745607495993,11.13004898,1797.0,1796.6,4.842]
[1745607496169,6.75311814,1797.0,1796.6,4.842]
[1745607496902,5.56514077,1796.9,1796.6,4.842]
[1745607498375,5.56559894,1796.8,1796.5,1.40460283]
[1745607498578,11.91367653,1796.8,1796.5,0.65360283]
[1745607498774,7.53938039,1796.8,1796.3,1.41870283]
[1745607498993,6.08566084,1796.7,1796.3,1.41870283]
[1745607499396,5.5659187,1796.7,1796.3,1.41870283]
[1745607502502,7.5394135,1796.8,1796.3,1.41870283]
[1745607502706,0.52012445,1796.7,1796.3,1.41870283]
[1745607503002,0.83219919,1796.7,1796.3,1.41870283]
[1745607503708,6.34804585,1796.8,1796.3,1.41870283]
[1745607504077,5.56579165,1796.7,1796.3,1.41870283]
[1745607504606,5.56622757,1796.6,1796.3,1.41870283]
[1745607505109,5.56593227,1796.7,1796.3,1.41870283]
[1745607505680,0.52039451,1796.6,1796.3,1.41870283]
[1745607506397,5.56593227,1796.7,1796.3,1.41870283]
[1745607506988,5.56593227,1796.7,1796.5,0.65360283]
[1745607507185,6.7573262,1796.7,1796.5,0.65360283]
[1745607507375,1.19139393,1796.7,1796.5,0.65360283]
[1745607507708,11.67528149,1796.9,1796.6,0.7889]
[1745607507884,17.24068384,1796.9,1796.6,0.7889]
[1745607508211,5.87774827,1796.8,1796.6,0.7889]
[1745607508609,0.31226818,1796.8,1796.7,0.65360283]
[1745607508984,0.52047598,1796.8,1796.7,0.65360283]
[1745607512088,5.56517041,1796.9,1796.7,0.65360283]
[1745607512419,5.56544968,1796.8,1796.6,0.7889]
[1745607513930,5.56544968,1796.8,1796.5,5.49260283]
[1745607514223,0.52056797,1796.7,1796.5,6.31480283]
[1745607514598,5.56526487,1796.9,1796.5,6.31480283]
[1745607515193,0.52056242,1796.8,1796.5,6.31480283]
[1745607515398,6.0861107,1796.8,1796.5,6.31480283]
[1745607515727,0.52056242,1796.7,1796.5,6.31480283]
[1745607516601,5.56545466,1796.8,1796.5,6.31480283]
[1745607517091,5.56526487,1796.9,1796.5,6.31480283]
[1745607517419,6.08615954,1796.8,1796.5,6.31480283]
[1745607517629,0.83300078,1796.8,1796.5,6.31480283]
[1745607518004,0.31237529,1796.8,1796.5,6.31480283]
[1745607518405,5.56526487,1796.9,1796.5,6.31480283]
[1745607519034,0.52064674,1796.8,1796.5,6.31480283]
[1745607519209,6.0861387,1796.8,1796.5,6.31480283]
[1745607519418,0.52064674,1796.7,1796.5,6.31480283]
[1745607519727,5.56549196,1796.8,1796.5,6.31480283]
[1745607520937,0.52070391,1796.7,1796.5,6.31480283]
[1745607521634,5.56549196,1796.8,1796.5,6.31480283]
[1745607522313,5.56526487,1796.9,1796.5,6.31480283]
[1745607522514,5.56526487,1796.9,1796.7,0.65360283]
[1745607522717,0.31242935,1796.8,1796.7,0.65360283]
[1745607523015,0.83313824,1796.8,1796.7,0.65360283]
[1745607523442,0.52070889,1796.8,1796.7,0.65360283]
[1745607525515,0.52070889,1796.8,1796.7,1.41870283]
[1745607525819,5.56461965,1797.1,1796.7,1.41870283]
[1745607526321,0.31240991,1797.0,1796.7,1.41870283]
[1745607526521,0.83307719,1797.0,1796.7,1.41870283]
[1745607527016,0.52066728,1796.9,1796.7,1.41870283]
[1745607527221,0.31240991,1796.9,1796.7,1.41870283]
[1745607528342,0.31240991,1797.2,1796.8,0.7865]
[1745607528651,0.31240991,1797.2,1797.0,0.65360283]
[1745607529140,0.7969,1797.4,1797.0,0.65360283]
[1745607529141,6.36057814,1797.4,1797.0,0.65360283]
[1745607529544,0.5202932,1797.3,1797.0,0.65360283]
[1745607530110,0.5202932,1797.2,1797.0,0.65360283]
[1745607530731,6.36057814,1797.4,1797.0,0.65360283]
[1745607531317,6.08421489,1797.3,1797.0,0.65360283]
[1745607531612,5.56430024,1797.2,1797.0,0.65360283]
[1745607531813,0.52018668,1797.1,1797.0,0.65360283]
[1745607532062,0.52018668,1797.1,1796.8,1.44010283]
[1745607532364,6.08473226,1797.1,1796.8,1.44010283]
[1745607532653,5.56430024,1797.2,1796.8,1.44010283]
[1745607533040,0.31207265,1797.1,1796.8,1.44010283]
[1745607533760,5.87669046,1797.1,1796.8,1.44010283]
[1745607533932,0.31207265,1797.0,1796.8,1.44010283]
[1745607534247,0.83221747,1797.0,1796.8,1.44010283]
[1745607534446,0.83221747,1797.0,1796.8,0.65360283]
[1745607534745,5.56461781,1797.1,1796.8,0.65360283]
[1745607534942,11.95116208,1797.2,1796.8,0.65360283]
[1745607535136,13.14627829,1797.2,1796.8,0.65360283]
[1745607535335,0.52014736,1797.1,1796.8,0.65360283]
[1745607536140,5.5645241,1797.1,1796.8,0.65360283]
[1745607537146,11.12929963,1797.1,1796.8,0.65360283]
[1745607537362,0.52022158,1797.0,1796.8,0.65360283]
[1745607537720,6.08515729,1797.0,1796.8,0.65360283]
[1745607537921,6.72990385,1797.0,1796.8,0.65360283]
[1745607538226,0.52031677,1796.9,1796.8,0.65360283]
[1745607539173,5.56466308,1797.1,1796.8,0.65360283]
[1745607539750,0.52029526,1797.0,1796.8,0.65360283]
[1745607540345,2.01741621,1797.2,1796.8,0.65360283]
[1745607540346,5.56472364,1797.1,1796.8,0.65360283]
[1745607540950,11.12949893,1797.1,1796.8,0.65360283]
[1745607541157,1.11294989,1797.0,1796.8,0.65360283]
[1745607541455,5.56472364,1797.1,1796.8,0.65360283]
[1745607541757,0.52025961,1797.0,1796.8,0.65360283]
[1745607542217,5.56452171,1797.1,1796.8,0.65360283]
[1745607543371,0.8021,1796.9,1796.5,0.7574]
[1745607543553,5.56561479,1796.8,1796.5,0.7574]
[1745607543727,0.52027438,1796.7,1796.5,0.7574]
[1745607544230,5.56558008,1796.8,1796.5,0.7574]
[1745607544427,6.75887857,1796.8,1796.4,1.41100283]
[1745607545367,1.19329849,1796.8,1796.4,1.41100283]
[1745607545543,0.52034126,1796.7,1796.4,1.41100283]
[1745607546255,5.56554376,1796.8,1796.4,1.41100283]
[1745607546580,5.56577126,1796.7,1796.4,1.41100283]
[1745607546754,5.56554376,1796.8,1796.4,1.41100283]
[1745607546932,0.52033396,1796.7,1796.4,1.41100283]
[1745607547327,5.56554376,1796.8,1796.4,1.41100283]
[1745607548165,0.52031665,1796.7,1796.4,1.41100283]
[1745607548558,5.56581883,1796.7,1796.4,1.41100283]
[1745607549150,5.56650083,1796.5,1796.3,4.836]
[1745607549758,6.63887697,1796.6,1796.3,4.836]
[1745607549965,6.3266477,1796.6,1796.3,4.836]
[1745607550531,0.52019476,1796.5,1796.3,4.836]
[1745607550733,6.08658996,1796.5,1796.3,4.836]
[1745607551044,6.67903518,1796.7,1796.4,0.65360283]
[1745607551435,12.24504639,1796.7,1796.4,0.65360283]
[1745607551635,6.08606839,1796.6,1796.4,0.65360283]
[1745607552038,5.56609088,1796.6,1796.4,0.65360283]
[1745607553868,6.67903518,1796.7,1796.4,0.65360283]
[1745607554125,0.51979269,1796.6,1796.4,0.65360283]
[1745607554574,5.56607983,1796.6,1796.4,0.65360283]
[1745607555169,11.13241811,1796.6,1796.4,0.65360283]
[1745607555368,5.56607983,1796.6,1796.4,0.65360283]
[1745607556172,6.67906293,1796.7,1796.4,0.65360283]
[1745607556772,0.5195586,1796.6,1796.4,1.41740283]
[1745607557070,5.56561905,1796.8,1796.5,0.65360283]
[1745607557840,5.56577575,1796.7,1796.5,0.65360283]
[1745607559975,5.56561905,1796.8,1796.5,0.65360283]
[1745607560276,5.56577033,1796.7,1796.5,0.65360283]
[1745607561076,11.13136688,1796.8,1796.5,0.65360283]
[1745607561278,5.56581622,1796.7,1796.5,0.65360283]
[1745607566754,0.52023578,1796.6,1796.5,0.65360283]
[1745607567859,0.52023578,1796.6,1796.4,1.41740283]
[1745607568061,0.52023578,1796.6,1796.5,0.83236262]
[1745607568271,0.52023578,1796.6,1796.5,9.94873557]
[1745607568656,6.39684573,1797.1,1796.6,0.7767]
[1745607568852,6.39684573,1797.1,1796.5,3.55]
[1745607568853,0.52023578,1797.0,1796.9,0.7767]
[1745607569264,0.52023578,1797.0,1796.9,2.03029045]
[1745607569657,5.56430597,1797.2,1796.9,2.03029045]
[1745607570063,5.56452467,1797.1,1796.9,2.03029045]
[1745607570268,1.11288306,1797.1,1796.9,1.25359045]
[1745607570469,5.56430597,1797.2,1796.9,1.25359045]
[1745607570691,0.52003253,1797.1,1796.9,1.25359045]
[1745607571290,0.52003253,1797.1,1796.9,0.65815579]
[1745607571584,5.56430597,1797.2,1796.9,0.65815579]
[1745607572301,0.51998087,1797.1,1796.9,0.65815579]
[1745607572590,0.83196937,1797.1,1796.9,0.65815579]
[1745607572795,0.3119885,1797.1,1796.9,0.65815579]
[1745607573530,5.56430597,1797.2,1796.9,0.65815579]
[1745607573678,0.51984957,1797.1,1796.9,0.65815579]
[1745607574208,5.56430597,1797.2,1796.9,0.65815579]
[1745607574403,6.75252512,1797.2,1796.9,0.65815579]
[1745607575004,0.51975522,1797.1,1796.9,0.65815579]
[1745607575579,0.51975522,1797.1,1796.8,0.65815579]
[1745607575896,5.87618517,1797.2,1797.0,0.65815579]
[1745607576276,11.44063208,1797.2,1797.0,0.65815579]
[1745607576476,5.56435136,1797.2,1797.0,0.65815579]
[1745607576720,0.51964579,1797.1,1797.0,0.65815579]
[1745607577712,5.56435136,1797.2,1797.0,0.65815579]
[1745607578010,6.75257498,1797.2,1797.0,0.65815579]
[1745607579017,6.31791766,1797.3,1797.0,0.65815579]
[1745607579311,0.51950647,1797.2,1797.0,1.44255579]
[1745607580111,5.87559335,1797.3,1797.0,0.65815579]
[1745607580314,5.56421102,1797.2,1797.0,0.65815579]
[1745607581407,5.56421102,1797.2,1796.8,1.46965579]
[1745607582006,6.38891102,1797.2,1796.8,1.46965579]
[1745607582208,7.58419233,1797.2,1796.8,1.46965579]
[1745607582410,13.14869293,1797.2,1796.8,1.46965579]
[1745607582707,13.14871294,1797.2,1796.8,1.46965579]
[1745607582904,7.58419233,1797.2,1796.8,1.46965579]
[1745607583219,0.51954728,1797.1,1796.8,1.46965579]
[1745607583423,7.58419233,1797.2,1796.8,1.46965579]
[1745607584497,6.38891102,1797.2,1796.8,1.46965579]
[1745607585221,0.8247,1797.2,1796.8,1.46965579]
[1745607585634,0.51971239,1797.1,1796.8,1.46965579]
[1745607586036,0.8247,1797.2,1796.8,1.46965579]
[1745607587128,6.38892047,1797.2,1796.8,1.46965579]
[1745607587297,0.51980456,1797.1,1796.8,1.46965579]
[1745607587915,6.38892047,1797.2,1796.8,1.46965579]
[1745607588608,0.51983421,1797.1,1796.8,1.46965579]
[1745607589033,0.8247,1797.2,1796.8,1.46965579]
[1745607589404,6.3889127,1797.2,1796.8,1.46965579]
[1745607590027,11.12817952,1797.3,1797.0,0.65815579]
[1745607590235,6.75971176,1797.3,1797.0,0.65815579]
[1745607590633,6.75971176,1797.3,1796.8,0.65815579]
[1745607590634,5.56463593,1797.1,1796.8,0.65815579]
[1745607590812,5.56463593,1797.1,1796.7,5.49215579]
[1745607591017,0.51988754,1797.0,1796.7,5.49215579]
[1745607591520,0.8013,1797.2,1796.9,0.65815579]
[1745607592032,0.31198614,1797.1,1796.9,0.65815579]
[1745607593007,6.36551932,1797.2,1796.9,0.65815579]
[1745607593207,0.52006542,1797.1,1796.9,0.65815579]
[1745607593402,0.52006542,1797.1,1797.0,1.25350651]
[1745607594830,0.83223696,1797.1,1797.0,1.25350651]
[1745607595531,0.83223696,1797.1,1796.9,0.65810756]
[1745607595733,0.52006542,1797.0,1796.9,0.65810756]
[1745607597540,0.83279255,1797.0,1796.9,0.65810756]
[1745607601110,0.83279255,1797.0,1796.9,7.69335508]
[1745607601306,0.7536,1797.6,1796.9,11.2432176]
[1745607601554,0.7536,1797.8,1797.5,0.65810756]
[1745607601854,0.7536,1797.8,1797.7,0.65810756]
[1745607602056,5.56205654,1797.9,1797.7,0.65810756]
[1745607602410,5.56205654,1797.9,1797.4,0.812]
[1745607602411,0.7536,1797.9,1797.3,4.83]
[1745607602614,5.56296667,1797.7,1797.4,0.65810756]
[1745607602815,6.11932177,1797.6,1797.4,0.65810756]
[1745607603045,0.55629667,1797.6,1797.4,0.65810756]
[1745607603216,0.7536,1797.2,1796.7,0.812]
[1745607603526,0.7536,1797.2,1796.5,0.65810756]
[1745607603527,5.56583461,1796.7,1796.5,0.65810756]
[1745607603708,11.1318909,1796.7,1796.3,5.48810756]
[1745607603914,5.56575944,1796.7,1796.3,5.48810756]
[1745607604154,5.56483156,1797.0,1796.1,16.741]
[1745607604155,5.56668893,1796.4,1796.1,0.70810756]
[1745607604353,6.3700909,1796.5,1796.1,0.70810756]
[1745607604652,6.36949259,1796.7,1796.3,0.65810756]
[1745607604865,6.36949259,1796.7,1796.1,0.05]
[1745607604866,4.83,1796.8,1796.5,0.65810756]
[1745607605153,0.7549,1796.9,1796.7,0.65810756]
[1745607605315,6.32005962,1796.9,1796.7,0.65810756]
[1745607605730,5.56558448,1796.8,1796.5,0.65810756]
[1745607606114,5.56544968,1796.8,1796.5,0.65810756]
[1745607606331,6.19748465,1796.8,1796.5,0.65810756]
[1745607606534,5.56592251,1796.7,1796.5,0.65810756]
[1745607606749,6.19748465,1796.8,1796.5,0.65810756]
[1745607607479,6.32024401,1796.9,1796.5,0.65810756]
[1745607607842,5.56549539,1796.8,1796.5,0.65810756]
[1745607608352,11.13123366,1796.8,1796.5,0.65810756]
[1745607608572,5.56549539,1796.8,1796.5,0.65810756]
[1745607608869,6.32024141,1796.9,1796.5,0.65810756]
[1745607609069,11.88565908,1796.9,1796.5,0.65810756]
[1745607609576,6.32024141,1796.9,1796.5,0.65810756]
[1745607610346,0.7549,1796.9,1796.7,0.65810756]
[1745607610547,10.39467727,1797.1,1796.7,0.65810756]
[1745607610548,0.8145,1797.1,1796.7,1.41620756]
[1745607610746,0.8145,1797.1,1796.9,0.65810756]
[1745607610978,5.56421592,1797.2,1796.9,0.65810756]
[1745607611581,11.9425768,1797.3,1796.9,0.65810756]
[1745607611781,5.56426696,1797.2,1796.9,0.65810756]
[1745607611947,5.56464407,1797.1,1796.9,0.65810756]
[1745607612148,11.12873123,1797.2,1796.9,0.65810756]
[1745607612479,5.56455945,1797.1,1796.9,0.65810756]
[1745607613483,5.56436299,1797.2,1796.9,0.65810756]
[1745607613996,5.56455014,1797.1,1796.9,0.65810756]
[1745607614701,5.5644237,1797.2,1796.9,0.65810756]
[1745607615607,6.37857771,1797.3,1796.9,0.65810756]
[1745607616000,0.51955723,1797.2,1796.9,0.65810756]
[1745607616393,0.51955723,1797.2,1797.1,0.65810756]
[1745607616907,6.39531127,1797.3,1797.1,0.65810756]
[1745607617299,0.31172702,1797.3,1797.1,0.65810756]
[1745607617496,5.56404478,1797.3,1797.1,0.65810756]
[1745607618080,5.56375068,1797.4,1797.1,0.65810756]
[1745607618287,6.68314575,1797.4,1797.1,0.65810756]
[1745607618585,0.51952932,1797.3,1797.1,0.65810756]
[1745607618810,10.3927328,1797.7,1797.1,0.65810756]
[1745607618811,11.41805228,1798.3,1797.1,0.65810756]
[1745607618980,6.31456482,1797.7,1797.3,0.65810756]
[1745607619176,5.56330533,1797.5,1797.3,0.65810756]
[1745607619479,5.56359185,1797.4,1797.3,0.65810756]
[1745607620208,6.19459383,1797.6,1797.3,0.65810756]
[1745607622825,0.7518,1797.7,1797.3,0.65810756]
[1745607623020,0.51896287,1797.7,1797.5,0.65810756]
[1745607623693,5.56248308,1797.8,1797.5,0.65810756]
[1745607624304,0.5910794,1798.5,1797.8,0.7524]
[1745607624496,5.56111545,1798.3,1798.1,0.65810756]
[1745607624706,0.51829314,1798.2,1798.1,0.65810756]
[1745607625097,5.56108404,1798.3,1798.1,0.65810756]
[1745607625330,6.38094562,1798.4,1798.1,0.65810756]
[1745607625729,11.94169048,1798.4,1798.1,0.65810756]
[1745607625927,6.75502724,1798.3,1797.9,0.65810756]
[1745607626115,5.56173526,1798.0,1797.8,0.7524]
[1745607626431,0.8203,1798.1,1797.5,1.41050756]
[1745607626432,5.56250702,1797.8,1797.5,1.41050756]
[1745607626930,5.56271386,1797.7,1797.5,1.41050756]
[1745607627138,5.56250702,1797.8,1797.5,1.41050756]
[1745607628726,5.56230436,1797.9,1797.5,1.41050756]
[1745607628933,11.12459657,1797.9,1797.5,1.41050756]
[1745607629243,12.23705623,1797.9,1797.5,1.41050756]
[1745607629507,5.56249736,1797.8,1797.5,1.41050756]
[1745607630153,0.8065,1797.8,1797.5,0.65810756]
[1745607630354,6.36899627,1797.8,1797.5,0.65810756]
[1745607630966,5.56275804,1797.7,1797.5,0.65810756]
[1745607631590,5.56266938,1797.7,1797.5,0.65810756]
[1745607632104,6.75583594,1797.7,1797.4,1.43780756]
[1745607632658,5.56325636,1797.6,1797.2,0.8327]
[1745607632973,5.56369627,1797.4,1797.2,0.8327]
[1745607633186,5.5639014,1797.3,1797.0,5.6577]
[1745607633398,5.5639014,1797.3,1797.0,4.825]
[1745607633864,5.56422002,1797.2,1796.9,0.65810756]
[1745607634066,5.5639014,1797.3,1796.9,0.65810756]
[1745607635266,5.56432286,1797.2,1796.9,0.65810756]
[1745607635569,5.56413756,1797.3,1796.9,0.65810756]
[1745607635780,5.56438519,1797.2,1796.9,0.65810756]
[1745607636408,5.56452579,1797.1,1796.9,0.65810756]
[1745607636612,5.56483027,1797.0,1796.8,0.8327]
[1745607636910,5.56489525,1797.0,1796.6,0.8103]
[1745607637115,5.56530149,1796.9,1796.6,0.8103]
[1745607637272,5.56505792,1797.0,1796.6,0.8103]
[1745607637613,5.56514458,1796.9,1796.6,0.8103]
[1745607638325,5.56514458,1796.9,1796.5,5.48310756]
[1745607638326,5.56547991,1796.8,1796.5,5.48310756]
[1745607638634,5.56514458,1796.9,1796.5,5.48310756]
[1745607638911,5.56523373,1796.9,1796.5,5.48310756]
[1745607640204,5.56498649,1797.0,1796.5,5.48310756]
[1745607640472,11.13005407,1797.0,1796.5,5.48310756]
[1745607640669,5.56498649,1797.0,1796.5,5.48310756]
[1745607640898,11.13011318,1797.0,1796.5,5.48310756]
[1745607641088,5.56526643,1796.9,1796.5,5.48310756]
[1745607643109,5.56526643,1796.9,1796.5,4.825]
[1745607643399,11.13066364,1796.9,1796.5,5.48310756]
[1745607643708,5.56526643,1796.9,1796.5,5.48310756]
[1745607643910,5.56546058,1796.8,1796.5,5.48310756]
[1745607644111,5.56515,1796.9,1796.5,5.48310756]
[1745607645517,5.56550767,1796.8,1796.5,5.48310756]
[1745607645672,5.56637907,1796.5,1796.4,0.7614]
[1745607645875,0.55663791,1796.5,1796.2,0.8101]
[1745607646098,6.35976886,1796.8,1796.3,0.65810756]
[1745607646573,5.56592235,1796.7,1796.3,0.65810756]
[1745607647202,6.35976886,1796.8,1796.3,0.65810756]
[1745607647399,11.92548983,1796.8,1796.4,0.8076]
[1745607647572,5.56578844,1796.7,1796.4,0.8076]
[1745607649810,6.35976886,1796.8,1796.5,0.65810756]
[1745607650006,5.56578792,1796.7,1796.5,0.65810756]
[1745607650782,5.56557551,1796.8,1796.5,0.65810756]
[1745607651708,11.93687386,1796.9,1796.5,0.65810756]
[1745607651901,5.56545665,1796.8,1796.5,0.65810756]
[1745607652095,5.56527232,1796.9,1796.5,0.65810756]
[1745607652504,8.56497563,1797.0,1796.5,0.65810756]
[1745607652831,5.56514005,1796.9,1796.5,0.65810756]
[1745607653616,11.13053354,1796.9,1796.5,0.65810756]
[1745607653823,5.56549293,1796.8,1796.5,0.65810756]
[1745607654176,5.56514005,1796.9,1796.5,0.65810756]
[1745607656121,5.56500751,1797.0,1796.5,0.65810756]
[1745607656286,5.56516932,1796.9,1796.5,0.65810756]
[1745607657318,5.56500751,1797.0,1796.5,0.65810756]
[1745607657524,6.3770367,1797.1,1796.7,0.65810756]
[1745607657876,11.9418485,1797.1,1796.7,0.65810756]
[1745607658304,5.5646367,1797.1,1796.7,0.65810756]
[1745607658709,5.5646367,1797.1,1796.8,0.8013]
[1745607659359,5.56483351,1797.0,1796.8,0.8013]
[1745607660393,0.8096,1798.0,1797.0,0.796]
[1745607660599,0.51883487,1797.9,1797.7,1.45410756]
[1745607660810,0.51883487,1797.9,1797.6,0.65810756]
[1745607661130,0.51883487,1797.8,1797.5,0.796]
[1745607661844,1.03804803,1797.8,1797.5,0.796]
[1745607662340,0.51921316,1797.8,1797.6,0.65810756]
[1745607663141,0.51883487,1798.0,1797.6,0.65810756]
[1745607663632,6.91086431,1798.1,1797.6,0.65810756]
[1745607663794,7.92728695,1798.1,1797.6,0.65810756]
[1745607664127,5.56094277,1798.3,1797.9,0.65810756]
[1745607664632,11.92550662,1798.4,1797.9,0.65810756]
[1745607664832,5.56082514,1798.3,1797.9,0.65810756]
[1745607665189,5.56082514,1798.3,1797.7,1.43760756]
[1745607665395,6.11742111,1798.2,1797.7,1.43760756]
[1745607665594,11.67883513,1798.2,1797.7,1.43760756]
[1745607665837,5.56191553,1798.0,1797.7,0.7795]
[1745607666057,6.1173688,1798.2,1797.7,0.7795]
[1745607666207,6.1173688,1798.2,1797.7,1.43760756]
[1745607666405,0.55608251,1798.2,1797.7,1.43760756]
[1745607666625,6.36483811,1798.4,1797.9,0.65810756]
[1745607666986,5.56084128,1798.3,1797.9,0.65810756]
[1745607667283,0.8041,1798.4,1797.9,0.65810756]
[1745607667433,6.36471504,1798.4,1797.9,0.65810756]
[1745607667633,5.56091209,1798.3,1797.9,0.65810756]
[1745607667878,6.3647453,1798.4,1797.9,0.65810756]
[1745607668434,6.3646353,1798.4,1797.9,0.65810756]
[1745607668761,5.56082683,1798.3,1797.9,0.65810756]
[1745607669343,6.3647562,1798.4,1797.9,0.65810756]
[1745607669734,5.56034506,1798.5,1798.0,0.7748]
[1745607669963,5.56034506,1798.5,1798.1,0.65810756]
[1745607670266,6.38822767,1798.6,1798.1,0.65810756]
[1745607670267,11.94840141,1798.6,1798.1,0.65810756]
[1745607670465,6.38822767,1798.6,1798.1,0.65810756]
[1745607670697,5.56004889,1798.6,1798.1,0.65810756]
[1745607670854,8.5931,1798.8,1798.1,0.65810756]
[1745607670855,5.56047563,1798.5,1798.1,0.65810756]
[1745607671053,5.56082664,1798.3,1798.1,0.65810756]
[1745607671299,5.56082664,1798.3,1798.0,0.7748]
[1745607672600,11.12191701,1798.3,1798.0,0.7748]
[1745607672905,5.56170535,1798.1,1797.8,0.7881]
[1745607673069,0.7973,1798.1,1797.6,0.7881]
[1745607673273,5.56248619,1797.8,1797.5,5.48010756]
[1745607673459,5.56191934,1798.0,1797.5,5.48010756]
[1745607673662,5.56225116,1797.9,1797.5,5.48010756]
[1745607673979,11.12455825,1797.9,1797.5,5.48010756]
[1745607674160,5.56261451,1797.8,1797.5,5.48010756]
[1745607675098,5.56214488,1797.9,1797.5,5.48010756]
[1745607675462,5.56157046,1798.1,1797.7,1.43160756]
[1745607675761,5.56199432,1798.0,1797.7,1.43160756]
[1745607676388,5.56198931,1798.0,1797.7,1.43160756]
[1745607676595,5.56198031,1798.0,1797.7,1.43160756]
[1745607676791,5.56206962,1797.9,1797.7,1.43160756]
[1745607677001,5.56198031,1798.0,1797.7,1.43160756]
[1745607677299,5.56207,1797.9,1797.7,1.43160756]
[1745607677466,5.56249762,1797.8,1797.5,6.28600756]
[1745607677662,5.561332,1798.2,1797.7,0.65810756]
[1745607677995,6.20067948,1798.2,1797.9,0.65810756]
[1745607678509,11.76208689,1798.2,1797.7,0.65810756]
[1745607678707,11.12273941,1798.2,1797.7,0.65810756]
[1745607679071,5.56143279,1798.1,1797.7,0.65810756]
[1745607680464,5.561332,1798.2,1797.7,0.65810756]
[1745607681381,5.561332,1798.2,1797.9,1.41690756]
[1745607681585,6.39313514,1798.3,1797.9,1.41690756]
[1745607681586,11.12203525,1798.3,1797.9,1.41690756]
[1745607681922,5.56098502,1798.3,1797.9,1.41690756]
[1745607682872,11.1220686,1798.3,1797.9,1.41690756]
[1745607683191,11.12203867,1798.3,1797.9,1.41690756]
[1745607683391,5.56098502,1798.3,1797.9,1.41690756]
[1745607683769,5.56095174,1798.3,1797.9,1.41690756]
[1745607684172,5.56144609,1798.1,1797.9,1.41690756]
[1745607684409,11.12267317,1798.2,1797.9,1.41690756]
[1745607684608,5.56130237,1798.2,1797.9,1.41690756]
[1745607684794,11.12266202,1798.2,1797.9,1.41690756]
[1745607684992,5.56173526,1798.0,1797.7,0.8196]
[1745607685404,11.12374092,1798.0,1797.7,0.8196]
[1745607685573,5.56173526,1798.0,1797.7,0.8196]
[1745607686610,5.56154285,1798.1,1797.7,0.8196]
[1745607687430,5.56154285,1798.1,1797.8,0.65810756]
[1745607687635,5.56090377,1798.3,1797.8,0.65810756]
[1745607687808,5.56130176,1798.2,1797.8,0.65810756]
[1745607688346,5.56063549,1798.4,1798.1,0.7628]
[1745607688523,0.51905829,1798.3,1798.1,0.7628]
[1745607689108,6.07966705,1798.4,1798.1,0.7628]
[1745607689413,6.39106586,1798.4,1798.1,0.7628]
[1745607689614,0.51905829,1798.3,1798.1,0.7628]
[1745607690001,0.51905829,1798.3,1798.2,0.65810756]
[1745607690197,0.31139881,1798.4,1798.2,0.65810756]
[1745607690198,5.87190322,1798.4,1798.2,0.65810756]
[1745607690442,5.56050441,1798.4,1798.2,0.65810756]
[1745607690999,5.56031177,1798.5,1798.2,0.65810756]
[1745607691638,6.0802899,1798.4,1798.2,0.65810756]